{"text_format":"3","workbook":"xlsx","n_sheets":4,"sheets":["Сводка по наличным деньгам","Расходы наличными","Сводка за месяц","Данные диаграммы"],"not_rendered":{"charts":2,"defined_names":7,"pivot_tables":2},"read":"whole","date_system":"1900"}

{"sheet":"Сводка по наличным деньгам","index":0,"n_rows":22,"n_cols":7,"rows_kept":22,"merged":[[0,1,1,5],[2,1,2,2],[2,3,2,4],[3,1,18,1],[19,1,20,1],[21,1,22,1]]}
[null,"Журнал учета личных денежных средств"]
[{"$nulls":6},"Расходы наличными >"]
[{"$nulls":3},"Сводка по наличным деньгам"]
[null,"В этой ячейке находится гистограмма для отображения процента доступных денежных средств.",null,"Счет","Начальная сумма наличными","Итого расходы","Остаток наличных денег"]
[{"$nulls":3},"Расчетный",{"v":3000,"d":"3000.00"},{"$f":"SUMIF(РасходыНаличными[Счет],\"=\" &СводнаяТаблицаПоНаличным[[#This Row],[Счет]],РасходыНаличными[Сумма])","v":{"v":496,"d":"496.00"}},{"$f":"СводнаяТаблицаПоНаличным[[#This Row],[Начальная сумма наличными]]-СводнаяТаблицаПоНаличным[[#This Row],[Итого расходы]]","v":{"v":2504,"d":"2504.00"}}]
[{"$nulls":3},"Сберегательный",{"v":500,"d":"500.00"},{"$f":"SUMIF(РасходыНаличными[Счет],\"=\" &СводнаяТаблицаПоНаличным[[#This Row],[Счет]],РасходыНаличными[Сумма])","v":{"v":450,"d":"450.00"}},{"$f":"СводнаяТаблицаПоНаличным[[#This Row],[Начальная сумма наличными]]-СводнаяТаблицаПоНаличным[[#This Row],[Итого расходы]]","v":{"v":50,"d":"50.00"}}]
[{"$nulls":3},"Другое",{"v":200,"d":"200.00"},{"$f":"SUMIF(РасходыНаличными[Счет],\"=\" &СводнаяТаблицаПоНаличным[[#This Row],[Счет]],РасходыНаличными[Сумма])","v":{"v":30,"d":"30.00"}},{"$f":"СводнаяТаблицаПоНаличным[[#This Row],[Начальная сумма наличными]]-СводнаяТаблицаПоНаличным[[#This Row],[Итого расходы]]","v":{"v":170,"d":"170.00"}}]
[{"$nulls":3}," Итог ",{"$f":"SUBTOTAL(109,СводнаяТаблицаПоНаличным[Начальная сумма наличными])","v":{"v":3700,"d":"3700.00"}},{"$f":"SUBTOTAL(109,СводнаяТаблицаПоНаличным[Итого расходы])","v":{"v":976,"d":"976.00"}},{"$f":"SUBTOTAL(109,СводнаяТаблицаПоНаличным[Остаток наличных денег])","v":{"v":2724,"d":"2724.00"}}]
{"$rows_empty":11}
[null,"Наличные деньги\nОстаток:"]
[]
[null,{"$f":"СводнаяТаблицаПоНаличным[[#Totals],[Остаток наличных денег]]/СводнаяТаблицаПоНаличным[[#Totals],[Начальная сумма наличными]]","v":{"v":0.7362162162162162,"d":"74%"}}]

{"sheet":"Расходы наличными","index":1,"n_rows":16,"n_cols":6,"rows_kept":16,"merged":[[0,1,1,3],[2,1,2,2],[3,5,6,6],[7,5,14,6]]}
[null,"Журнал учета личных денежных средств"]
[{"$nulls":4},"< Сводка по наличным деньгам","Сводка за месяц >"]
[null,"Расходы наличными"]
[null,"Дата","Описание","Сумма","Счет","В этой ячейке находится срез для фильтрации данных таблицы по типу счета."]
[null,{"$f":"TODAY()+105","v":"2023-03-28"},"Снятие наличных в банкомате",{"v":40,"d":"40.00"},"Расчетный"]
[null,{"$f":"TODAY()+106","v":"2023-03-29"},"Обед",{"v":5,"d":"5.00"},"Расчетный"]
[null,{"$f":"TODAY()+107","v":"2023-03-30"},"Оплата авто",{"v":230,"d":"230.00"},"Сберегательный"]
[null,{"$f":"TODAY()+135","v":"2023-04-27"},"Оплата электроэнергии",{"v":70,"d":"70.00"},"Расчетный","В этой ячейке находится срез для фильтрации данных таблицы по описанию."]
[null,{"$f":"TODAY()+139","v":"2023-05-01"},"Ужин",{"v":53,"d":"53.00"},"Расчетный"]
[null,{"$f":"TODAY()+162","v":"2023-05-24"},"Снятие наличных",{"v":100,"d":"100.00"},"Сберегательный"]
[null,{"$f":"TODAY()+167","v":"2023-05-29"},"Оплата авто",{"v":230,"d":"230.00"},"Расчетный"]
[null,{"$f":"TODAY()+198","v":"2023-06-29"},"Оплата электроэнергии",{"v":70,"d":"70.00"},"Сберегательный"]
[null,{"$f":"TODAY()+212","v":"2023-07-13"},"Снятие наличных в банкомате",{"v":30,"d":"30.00"},"Расчетный"]
[null,{"$f":"TODAY()+225","v":"2023-07-26"},"Снятие наличных в банкомате",{"v":50,"d":"50.00"},"Сберегательный"]
[null,{"$f":"TODAY()+232","v":"2023-08-02"},"Снятие наличных в банкомате",{"v":30,"d":"30.00"},"Другое"]
[null,{"$f":"TODAY()+283","v":"2023-09-22"},"Оплата электроэнергии",{"v":68,"d":"68.00"},"Расчетный"]

{"sheet":"Сводка за месяц","index":2,"n_rows":39,"n_cols":6,"rows_kept":39,"merged":[[0,1,1,4],[2,1,2,5],[3,1,3,6],[4,1,16,4],[4,5,8,6],[9,5,16,6],[17,1,17,5]]}
[null,"Сводка за месяц"]
[{"$nulls":5},"< Расходы наличными"]
[null,"Чтобы обновить эти данные, сначала выберите сводную диаграмму.  Щелкните правой кнопкой мыши, чтобы открыть контекстное меню.  Выберите \"Обновить\" или \"Обновить все\", чтобы обновить диаграмму."]
[null,"Сводка по счетам"]
[null,"В этой ячейке находится гистограмма сводки по счетам для сравнения средств на расчетном, сберегательном и других счетах в каждом месяце.",{"$nulls":3},"В этой ячейке находится срез для фильтрации диаграммы по типу счета."]
[]
[]
[]
[]
[{"$nulls":5},"В этой ячейке находится срез для фильтрации диаграммы по описанию."]
{"$rows_empty":7}
[null,"Сводка по расходам"]
[null,"Сведения"]
[null,null,"Расчетный","Сберегательный","Другое","Общий итог"]
[null,"мар",{"v":45,"d":"45.00"},{"v":230,"d":"230.00"},null,{"v":275,"d":"275.00"}]
[null,"Снятие наличных в банкомате",{"v":40,"d":"40.00"},null,null,{"v":40,"d":"40.00"}]
[null,"Оплата авто",null,{"v":230,"d":"230.00"},null,{"v":230,"d":"230.00"}]
[null,"Обед",{"v":5,"d":"5.00"},null,null,{"v":5,"d":"5.00"}]
[null,"апр",{"v":70,"d":"70.00"},null,null,{"v":70,"d":"70.00"}]
[null,"Оплата электроэнергии",{"v":70,"d":"70.00"},null,null,{"v":70,"d":"70.00"}]
[null,"май",{"v":283,"d":"283.00"},{"v":100,"d":"100.00"},null,{"v":383,"d":"383.00"}]
[null,"Оплата авто",{"v":230,"d":"230.00"},null,null,{"v":230,"d":"230.00"}]
[null,"Снятие наличных",null,{"v":100,"d":"100.00"},null,{"v":100,"d":"100.00"}]
[null,"Ужин",{"v":53,"d":"53.00"},null,null,{"v":53,"d":"53.00"}]
[null,"июн",null,{"v":70,"d":"70.00"},null,{"v":70,"d":"70.00"}]
[null,"Оплата электроэнергии",null,{"v":70,"d":"70.00"},null,{"v":70,"d":"70.00"}]
[null,"июл",{"v":30,"d":"30.00"},{"v":50,"d":"50.00"},null,{"v":80,"d":"80.00"}]
[null,"Снятие наличных в банкомате",{"v":30,"d":"30.00"},{"v":50,"d":"50.00"},null,{"v":80,"d":"80.00"}]
[null,"авг",null,null,{"v":30,"d":"30.00"},{"v":30,"d":"30.00"}]
[null,"Снятие наличных в банкомате",null,null,{"v":30,"d":"30.00"},{"v":30,"d":"30.00"}]
[null,"сен",{"v":68,"d":"68.00"},null,null,{"v":68,"d":"68.00"}]
[null,"Оплата электроэнергии",{"v":68,"d":"68.00"},null,null,{"v":68,"d":"68.00"}]
[null,"Общий итог",{"v":496,"d":"496.00"},{"v":450,"d":"450.00"},{"v":30,"d":"30.00"},{"v":976,"d":"976.00"}]

{"sheet":"Данные диаграммы","index":3,"n_rows":12,"n_cols":6,"rows_kept":12,"merged":[[0,1,0,2]]}
[null,"Данные сводной диаграммы"]
[null,"Эта сводная таблица является источником данных для сводной диаграммы «Сводка по счетам» на листе «Сводка за месяц»."]
[null,"Сумма по полю Сумма","Названия столбцов"]
[null,"Названия строк","Расчетный","Сберегательный","Другое","Общий итог"]
[null,"мар",{"v":45,"d":"45.00"},{"v":230,"d":"230.00"},null,{"v":275,"d":"275.00"}]
[null,"апр",{"v":70,"d":"70.00"},null,null,{"v":70,"d":"70.00"}]
[null,"май",{"v":283,"d":"283.00"},{"v":100,"d":"100.00"},null,{"v":383,"d":"383.00"}]
[null,"июн",null,{"v":70,"d":"70.00"},null,{"v":70,"d":"70.00"}]
[null,"июл",{"v":30,"d":"30.00"},{"v":50,"d":"50.00"},null,{"v":80,"d":"80.00"}]
[null,"авг",null,null,{"v":30,"d":"30.00"},{"v":30,"d":"30.00"}]
[null,"сен",{"v":68,"d":"68.00"},null,null,{"v":68,"d":"68.00"}]
[null,"Общий итог",{"v":496,"d":"496.00"},{"v":450,"d":"450.00"},{"v":30,"d":"30.00"},{"v":976,"d":"976.00"}]